[Event "Vezerkepzo GM May 2022"]
[Site "Budapest"]
[Date "2022.05.22"]
[Round "6.3"]
[White "Karavade, Eesha"]
[Black "Berczes, David"]
[Result "1/2-1/2"]
[ECO "E11"]
[WhiteElo "2348"]
[BlackElo "2437"]
[Annotator "TA"]
[PlyCount "73"]
[EventDate "2022.05.18"]
[EventType "tourn"]
[EventCountry "HUN"]
[SourceTitle "playchess.com"]
[Source "ChessBase"]
[SourceQuality "1"]
[TimeControl "5400+30"]

{[%evp 15,73,7,19,38,48,29,38,30,48,36,39,10,33,-8,-7,-8,-5,-25,-23,-36,-29,-32,-32,-32,-33,-26,-6,-1,-5,-6,-3,-3,0,-15,0,0,0,0,0,-2,-2,-4,-4,-102,-100,-100,0,0,0,-8,0,0,0,0,0,0,0,0,0,0]} 1. d4 {[%emt 0:00:07]} Nf6 {[%emt 0:15:04]} 2. c4 {[%emt 0:00:48]} e6 {[%emt 0:00:13]} 3. g3 {[%emt 0:00:13]} Bb4+ {[%emt 0:00:43]} 4. Bd2 {[%emt 0:00:14]} a5 {[%emt 0:00:06]} 5. Bg2 {[%emt 0:00:15]} d5 {[%emt 0:00:24]} 6. Nf3 {[%emt 0:00:13]} O-O {[%emt 0:00:11]} 7. O-O {[%emt 0:00:16] 7.Qc2 is the modern continuation.} dxc4 {[%emt 0:07:17]} 8. Qc2 {[%emt 0:01:09]} b6 {[%emt 0:06:32][%cal Bb7b6,Bb6b5,Bb5a4][%mdl 32]} 9. Bg5 {[%emt 0:33:23] E11: Bogo-Indian.} Bb7 {[%emt 0:06:35]} 10. Bxf6 {[%emt 0:02:58]} Qxf6 {[%emt 0:03:39] [#]} 11. Ng5 $1 {[%emt 0:00:29] White is slightly better.} Qxg5 {[%emt 0:00:12]} 12. Bxb7 {[%emt 0:00:05]} Ra7 {[%emt 0:00:22][%cal Ba8a7,Ba7c7,Bc7c5][%mdl 32] [#]} 13. Bf3 $146 {[%emt 0:00:03]} ({Predecessor:} 13. Be4 Rd8 14. e3 Be7 15. Nc3 Qh5 16. Qa4 c5 17. d5 exd5 18. Nxd5 Qe5 19. Bf3 {1-0 (36) Hernandez,A (2243)-Morrell,G (2231) ICCF email 2015}) 13... b5 {[%emt 0:05:11]} 14. a4 {[%emt 0:00:15]} (14. a3 $5 {[%cal Ra3b4]} Be7 15. Nc3 $11) 14... bxa4 {[%emt 0:09:32]} 15. Qxc4 {[%emt 0:02:47]} c5 {[%emt 0:09:51]} 16. dxc5 {[%emt 0:03:39]} (16. Rxa4 Nd7 17. dxc5 Rc7 $15) 16... Rc7 {[%emt 0:24:39]} 17. Qb5 {[%emt 0:21:54]} ({Don't play} 17. c6 Rfc8 18. Nc3 (18. h4 Qf6 $15) 18... Nxc6 19. Nxa4 Ne5 $15) 17... Nd7 {[%emt 0:05:00]} 18. Nc3 {[%emt 0:04:55]} Qxc5 {[%emt 0:00:46]} 19. Qxa4 {[%emt 0:02:00]} Nb6 {[%emt 0:00:34]} 20. Qb5 {[%emt 0:01:42]} Bxc3 {[%emt 0:01:18]} 21. Qxc5 {[%emt 0:00:02]} Rxc5 {[%emt 0:00:03]} 22. bxc3 {[%emt 0:00:08]} Rd8 {[%emt 0:02:15]} 23. Rfb1 {[%emt 0:03:51]} Rd6 {[%emt 0:01:01]} 24. Ra2 {[%emt 0:00:19]} g6 {[%emt 0:00:27]} 25. e3 {[%emt 0:00:55]} Nd7 {[%emt 0:00:33]} 26. Rba1 {[%emt 0:01:08]} Ra6 {[%emt 0:00:30]} 27. h4 {[%emt 0:01:31]} Kf8 {[%emt 0:00:28]} 28. Be2 {[%emt 0:01:05]} Ra7 {[%emt 0:00:02]} 29. Rb1 {[%emt 0:00:27]} (29. Ra3 $11 {remains equal.}) 29... Rxc3 $17 {[%emt 0:00:27]} 30. Bb5 {[%emt 0:00:09]} Rb7 {[%emt 0:01:03]} (30... Nf6 $17 31. Ba4 Rc5) 31. Rxa5 $11 {[%emt 0:01:03] The position is equal.} Rc5 {[%emt 0:00:30]} 32. Rd1 {[%emt 0:00:10]} Nb8 {[%emt 0:00:30]} 33. Rb1 {[%emt 0:01:30]} Nc6 {[%emt 0:00:30]} 34. Ra8+ {[%emt 0:00:08]} Nb8 {[%emt 0:00:29]} 35. Ra5 {[%emt 0:00:10]} ({Wrong is} 35. Bd3 $2 Rxb1+ 36. Bxb1 Rc1+ 37. Kg2 Rxb1 $19) 35... Kg7 {[%emt 0:00:31]} 36. Kg2 {[%emt 0:00:02]} Rcc7 {[%emt 0:00:31]} 37. Bd3 {[%emt 0:00:23] Weighted Error Value: White=0.11 (very precise) /Black=0.07 (flawless)} 1/2-1/2

[Event "Vezerkepzo GM May 2022"]
[Site "Budapest"]
[Date "2022.05.22"]
[Round "6.4"]
[White "Mazur, Stefan"]
[Black "Dudin, Gleb"]
[Result "1/2-1/2"]
[ECO "B30"]
[WhiteElo "2423"]
[BlackElo "2473"]
[Annotator "TA"]
[PlyCount "78"]
[EventDate "2022.05.18"]
[EventType "tourn"]
[EventCountry "HUN"]
[SourceTitle "playchess.com"]
[Source "ChessBase"]
[SourceQuality "1"]
[TimeControl "5400+30"]

{[%evp 9,78,18,23,19,23,17,35,38,33,30,26,26,31,20,32,4,11,0,0,0,0,0,0,0,2,0,0,0,0,0,0,0,0,0,7,0,0,0,0,-8,0,0,0,0,0,-7,-5,-5,0,-5,-5,-6,-4,-11,0,-2,0,-13,-12,-12,0,-13,0,0,0,0,0,0,0,0,0]} 1. e4 {[%emt 0:00:24]} c5 {[%emt 0:00:18]} 2. Nf3 {[%emt 0:00:07]} Nc6 {[%emt 0:00:09]} 3. Nc3 {[%emt 0:00:17]} e5 {[%emt 0:00:07]} 4. Bc4 {[%emt 0:00:28]} Be7 {[%emt 0:00:23]} 5. d3 {[%emt 0:00:19]} d6 {[%emt 0:00:17]} 6. a4 {[%emt 0:00:25] B30: Sicilian: 2...Nc6 3 Bb5, lines without ...g6.} Nf6 {[%emt 0:00:40]} 7. Bg5 {[%emt 0:01:07]} Nd7 {[%emt 0:00:21]} 8. Bxe7 {[%emt 0:05:25] White is slightly better.} Qxe7 {[%emt 0:00:24]} 9. Nd5 {[%emt 0:01:05]} Qd8 {[%emt 0:00:09] [#]} 10. Nd2 $146 {[%emt 0:07:37][%cal Bf3d2,Bd2f1,Bf1e3,Be3d5][%mdl 32]} ({Predecessor:} 10. c3 O-O 11. Nd2 Nf6 12. Nxf6+ Qxf6 13. Nf1 Qg5 14. Ne3 Kh8 15. h4 Qd8 16. g4 {½-½ (39) Short,N (2690)-Illescas Cordoba,M (2591) Sestao 2010}) 10... O-O {[%emt 0:06:04]} 11. Nf1 {[%emt 0:00:18]} Nf6 {[%emt 0:02:08]} 12. Nfe3 {[%emt 0:02:24]} Nxd5 {[%emt 0:00:20] The position is equal.} 13. Bxd5 {[%emt 0:01:48]} Ne7 {[%emt 0:02:56]} 14. O-O {[%emt 0:06:23]} Nxd5 {[%emt 0:07:00]} 15. Nxd5 {[%emt 0:00:08]} Be6 {[%emt 0:02:04]} 16. Ne3 {[%emt 0:01:08]} b6 {[%emt 0:08:49]} 17. f4 {[%emt 0:08:02]} exf4 {[%emt 0:04:23]} 18. Rxf4 {[%emt 0:00:07]} d5 {[%emt 0:02:37]} 19. exd5 {[%emt 0:12:07]} Bxd5 {[%emt 0:00:44]} 20. Nxd5 {[%emt 0:17:50]} Qxd5 {[%emt 0:00:29]} 21. Qf3 {[%emt 0:00:19]} Qd7 {[%emt 0:05:52]} 22. a5 {[%emt 0:04:09]} Rae8 {[%emt 0:09:13]} 23. axb6 {[%emt 0:02:48]} axb6 {[%emt 0:00:09]} 24. b4 {[%emt 0:00:54]} g6 {[%emt 0:09:08]} 25. bxc5 {[%emt 0:01:06]} bxc5 {[%emt 0:00:11]} 26. Qf2 {[%emt 0:07:14]} Re5 {[%emt 0:01:16]} 27. Rc4 {[%emt 0:00:59]} Rfe8 {[%emt 0:12:47][%cal Bf8e8,Be8e2,Be2e1][%mdl 32]} 28. Rf1 {[%emt 0:06:06]} Rf5 {[%emt 0:09:18]} 29. Rf4 {[%emt 0:02:18]} Rxf4 {[%emt 0:01:35]} 30. Qxf4 $11 {[%emt 0:00:03][%mdl 4096] Endgame KQR-KQR} Re2 {[%emt 0:00:24]} 31. Rf2 {[%emt 0:01:23]} Re1+ {[%emt 0:03:59]} 32. Rf1 {[%emt 0:00:06]} Qe7 {[%emt 0:02:59]} 33. h3 {[%emt 0:01:35]} Re2 {[%emt 0:02:18]} 34. Rf2 {[%emt 0:00:31]} Re1+ {[%emt 0:03:28]} 35. Rf1 {[%emt 0:00:26]} Kg7 {[%emt 0:00:27]} 36. Rxe1 {[%emt 0:04:53]} Qxe1+ {[%emt 0:00:07]} 37. Kh2 {[%emt 0:00:31]} Qc3 {[%emt 0:00:10]} 38. Qf2 {[%emt 0:00:32]} h5 {[%emt 0:00:18]} 39. h4 {[%emt 0:01:17]} Qe5+ {[%emt 0:04:10] Weighted Error Value: White=0.04 (flawless) /Black=0.04 (flawless)} 1/2-1/2

[Event "Vezerkepzo GM May 2022"]
[Site "Budapest"]
[Date "2022.05.22"]
[Round "6.5"]
[White "Aveskulov, Valeriy"]
[Black "Fule, Simon"]
[Result "1-0"]
[ECO "C85"]
[WhiteElo "2531"]
[BlackElo "2297"]
[Annotator "TA"]
[PlyCount "109"]
[EventDate "2022.05.18"]
[EventType "tourn"]
[EventCountry "HUN"]
[SourceTitle "playchess.com"]
[Source "ChessBase"]
[SourceQuality "1"]
[TimeControl "5400+30"]

{[%evp 14,109,16,0,0,8,14,-10,-8,-25,-5,0,0,0,3,0,12,0,16,0,53,39,55,67,69,39,54,45,32,31,56,32,45,27,30,16,25,10,10,12,14,14,16,-3,-3,-3,-14,-4,0,0,18,18,20,20,19,12,35,6,10,20,30,36,125,125,226,206,220,214,461,460,457,426,503,452,1121,1018,1143,1166,880,586,1104,1105,797,1084,961,897,1103,1512,29963,29965,5650,3332,29971,29972,29981,29982,29967,12691]} 1. e4 {[%emt 0:00:31]} e5 {[%emt 0:00:32]} 2. Nf3 {[%emt 0:00:05]} Nc6 {[%emt 0:00:04]} 3. Bb5 {[%emt 0:00:03]} a6 {[%emt 0:00:13]} 4. Ba4 {[%emt 0:00:05]} Nf6 {[%emt 0:00:07][%cal Bg8f6,Bf6d7,Bd7c5][%mdl 32]} 5. O-O {[%emt 0:00:04]} Be7 {[%emt 0:00:14]} 6. Bxc6 {[%emt 0:00:05]} dxc6 {[%emt 0:00:10]} 7. d3 {[%emt 0:00:03]} Nd7 {[%emt 0:00:34]} 8. b3 {[%emt 0:00:08]} f6 {[%emt 0:00:30] C85: Closed Ruy Lopez: Deferred Exchange Variation.} 9. Bb2 {[%emt 0:07:00]} Nc5 {[%emt 0:08:07]} 10. Nh4 {[%emt 0:04:34] [#]} g6 $146 {[%emt 0:04:16] Against Qh5. The position is equal.} ({Predecessor:} 10... Be6 11. Nd2 Qd7 12. f4 exf4 13. Rxf4 g5 14. Rxf6 Bxf6 15. Bxf6 Rg8 16. Nhf3 Bg4 {1-0 (41) Godena,M (2425)-Ilincic,Z (2430) Aosta 1989}) 11. Nc3 {[%emt 0:10:46][%cal Bb1c3,Bc3d1,Bd1e3][%mdl 32]} Be6 {[%emt 0:08:14]} 12. f4 {[%emt 0:18:32]} Qd6 {[%emt 0:24:47]} 13. fxe5 {[%emt 0:01:04]} fxe5 {[%emt 0:00:25]} 14. Nf3 {[%emt 0:00:06][%cal Of3e5]} Nd7 {[%emt 0:06:56]} 15. Qe1 {[%emt 0:05:22]} O-O-O {[%emt 0:08:05]} 16. Nd1 {[%emt 0:00:28]} c5 {[%emt 0:12:45]} (16... Bg4 $11) 17. Ne3 {[%emt 0:00:24]} Bf6 {[%emt 0:01:56]} 18. Qg3 {[%emt 0:02:03]} Rhf8 {[%emt 0:07:29]} 19. Rae1 {[%emt 0:21:27] White is more active.} Rde8 {[%emt 0:04:42][%cal Bd8e8,Be8e6,Be6d6,Bd6d1][%mdl 32]} 20. Nc4 {[%emt 0:04:59]} Bxc4 {[%emt 0:00:31]} 21. dxc4 {[%emt 0:00:03]} Re6 {[%emt 0:03:26]} 22. Re2 {[%emt 0:06:36][%cal Be1e2,Be2f2,Bf2f1,Bf1d1][%mdl 32]} Qe7 {[%emt 0:00:55]} 23. Bc1 {[%emt 0:00:46]} Rd6 {[%emt 0:01:43]} 24. Qh3 {[%emt 0:03:37]} b6 {[%emt 0:01:54]} 25. Ref2 {[%emt 0:04:35]} Kb7 {[%emt 0:01:12]} 26. Ne1 {[%emt 0:01:59]} Rd1 {[%emt 0:02:26]} 27. Bh6 {[%emt 0:05:08]} Bg7 {[%emt 0:00:16]} 28. Nf3 {[%emt 0:00:18]} Rxf1+ {[%emt 0:00:14]} 29. Rxf1 {[%emt 0:00:06]} Bxh6 {[%emt 0:01:02]} 30. Qxh6 {[%emt 0:00:02]} Rf4 {[%emt 0:00:41]} 31. g3 {[%emt 0:01:49]} Qf8 {[%emt 0:00:52]} 32. Qxf8 {[%emt 0:00:36]} Rxf8 $11 {[%emt 0:00:06][%mdl 4096] Endgame KRN-KRN} 33. Kg2 {[%emt 0:00:03]} Rf7 {[%emt 0:00:46]} 34. Rd1 {[%emt 0:01:14]} Re7 {[%emt 0:00:17]} 35. Rd5 {[%emt 0:01:57]} c6 {[%emt 0:00:24]} 36. Rd3 {[%emt 0:00:10]} Nf6 {[%emt 0:00:14]} 37. Ng5 {[%emt 0:00:23]} h6 {[%emt 0:00:57] White now steadily converts the win.} ({Better is} 37... b5 $14) 38. Rf3 $16 {[%emt 0:00:57]} Nd7 {[%emt 0:00:27]} (38... Ng4 $16) 39. Rf7 $18 {[%emt 0:00:46]} Rxf7 {[%emt 0:00:13]} 40. Nxf7 {[%emt 0:00:04] KN-KN} h5 {[%emt 0:00:38]} (40... Kc7 {is a better defense.} 41. Nxh6 Kd6) 41. Kh3 {[%emt 0:00:11]} Nf6 {[%emt 0:00:34]} 42. Kh4 {[%emt 0:00:36]} Nxe4 {[%emt 0:00:09]} 43. Nxe5 {[%emt 0:00:05]} g5+ {[%emt 0:01:19]} (43... b5 $142 44. Nxg6 bxc4 45. Kxh5 cxb3 46. cxb3 Kc7) 44. Kxh5 {[%emt 0:00:05]} b5 {[%emt 0:00:12]} 45. Kg4 {[%emt 0:00:37]} Kc7 {[%emt 0:00:12]} 46. h4 {[%emt 0:01:58] [#] Threatens to win with Kf5.} gxh4 {[%emt 0:00:04]} 47. gxh4 {[%emt 0:00:04]} Kd6 {[%emt 0:00:11]} 48. Kf4 {[%emt 0:00:15]} Nf6 {[%emt 0:00:19]} 49. Kf5 {[%emt 0:00:10]} Nh5 {[%emt 0:00:14]} 50. Nd3 {[%emt 0:00:29] [#] And now Kg6 would win.} bxc4 {[%emt 0:00:51]} 51. bxc4 {[%emt 0:00:04]} Ng3+ {[%emt 0:00:22]} 52. Kf6 {[%emt 0:00:51]} Ne4+ {[%emt 0:00:31]} 53. Kg6 {[%emt 0:00:07] White mates.} Nd2 {[%emt 0:00:46]} 54. h5 {[%emt 0:00:12][%cal Bh4h5,Bh5h6][%mdl 32]} Nxc4 {[%emt 0:00:04]} 55. h6 {[%emt 0:00:05] Weighted Error Value: White=0.14 (very precise) /Black=0.60} 1-0

[Event "Vezerkepzo GM May 2022"]
[Site "Budapest"]
[Date "2022.05.23"]
[Round "7.1"]
[White "Fule, Simon"]
[Black "Turzo, Attila"]
[Result "1-0"]
[ECO "B67"]
[WhiteElo "2297"]
[BlackElo "2338"]
[Annotator "TA"]
[PlyCount "117"]
[EventDate "2022.05.18"]
[EventType "tourn"]
[EventCountry "HUN"]
[SourceTitle "playchess.com"]
[Source "ChessBase"]
[SourceQuality "1"]
[TimeControl "5400+30"]

{[%evp 21,117,39,55,35,52,60,70,71,73,63,100,94,91,106,118,116,116,114,118,120,106,90,104,100,104,79,81,94,83,69,116,122,127,120,117,127,303,99,286,212,168,109,120,106,114,14,10,14,20,23,77,33,74,35,27,0,10,0,56,54,51,0,0,-38,61,0,47,35,59,33,50,28,117,12,5,0,53,61,53,38,61,52,67,75,191,110,80,61,71,12,103,52,172,147,160,167,883,706]} 1. e4 {[%emt 0:00:06]} c5 {[%emt 0:00:23]} 2. Nf3 {[%emt 0:00:14]} Nc6 {[%emt 0:00:27]} 3. d4 {[%emt 0:00:05]} cxd4 {[%emt 0:00:05]} 4. Nxd4 {[%emt 0:00:11]} Nf6 {[%emt 0:00:10]} 5. Nc3 {[%emt 0:00:10]} d6 {[%emt 0:00:08]} 6. Bg5 {[%emt 0:00:13]} e6 {[%emt 0:00:08]} 7. Qd2 {[%emt 0:00:17]} a6 {[%emt 0:00:10]} 8. O-O-O {[%emt 0:00:14]} Bd7 {[%emt 0:00:07]} 9. f4 {[%emt 0:00:08]} b5 {[%emt 0:00:10]} 10. Bxf6 {[%emt 0:00:59]} gxf6 {[%emt 0:00:10]} 11. Nxc6 {[%emt 0:00:18]} Bxc6 {[%emt 0:00:03]} 12. Qe3 {[%emt 0:00:19] 12.f5 is becoming the main line. B67: Sicilian: Richter-Rauzer: 7...a6 8 0-0-0 Bd7, lines without 9 f4 Be7.} Be7 {[%emt 0:02:36]} 13. Bd3 {[%emt 0:09:36]} h5 {[%emt 0:09:12]} 14. Kb1 {[%emt 0:04:57] White is slightly better.} Qc7 {[%emt 0:04:53]} 15. f5 {[%emt 0:29:51] [#]} Bb7 $146 {[%emt 0:21:24]} ({Predecessor:} 15... b4 16. Ne2 e5 17. Bc4 Ba4 18. Qd3 Bf8 19. Ng3 Qc5 20. Rhe1 Rc8 21. b3 Bc6 {1-0 (35) Krakops,M-Krogh,C (2280) Ringsted 1992}) 16. fxe6 {[%emt 0:01:15]} fxe6 {[%emt 0:00:26]} 17. Ne2 {[%emt 0:14:05]} Qc5 {[%emt 0:01:46]} 18. Qh3 {[%emt 0:01:00]} Kf7 {[%emt 0:04:32]} 19. Nf4 {[%emt 0:14:58]} Qe5 {[%emt 0:03:29][%csl LRe4,LRf4]} 20. Rhf1 {[%emt 0:01:26]} Rag8 {[%emt 0:00:37]} 21. Qe3 {[%emt 0:14:05]} h4 {[%emt 0:06:42]} 22. Rde1 {[%emt 0:01:49]} Bc8 {[%emt 0:05:50]} 23. c3 {[%emt 0:02:02]} (23. Qa7 Qc5 24. Qxc5 dxc5 $15) 23... Rg5 {[%emt 0:02:27]} 24. Bc2 {[%emt 0:01:40]} (24. Qa7 Qc5 25. Qb8 Bd8 $15) 24... Qc5 {[%emt 0:00:50]} 25. Qf3 {[%emt 0:01:40]} Bd7 {[%emt 0:08:36]} (25... a5 $1 $14 {might be stronger.}) 26. Bb3 $16 {[%emt 0:00:23]} a5 {[%emt 0:02:35]} 27. Qh3 {[%emt 0:00:48][%cal Rb3e6]} Qc8 {[%emt 0:00:13] aiming for ...a4.} 28. a3 $1 {[%emt 0:00:47]} Bd8 $2 {[%emt 0:05:49]} (28... a4 29. Ba2) (28... Rhg8 $16) 29. Rd1 $2 {[%emt 0:00:26]} (29. g3 $1 $18) 29... Ke7 $2 {[%emt 0:01:04]} (29... Be7 $16 {was worth a try.}) 30. Qf3 {[%emt 0:00:50][%cal Of4d5] Nd5+! is the strong threat.} Rh6 {[%emt 0:00:14]} 31. Rd2 {[%emt 0:00:27]} (31. Qd3 $6 Bc7 $14) (31. g4 $18 hxg3 32. h4 (32. hxg3 a4 $14) (32. Qd3 g2 $15)) 31... Bb6 {[%emt 0:04:46]} 32. Rfd1 {[%emt 0:00:26]} ({Don't take} 32. Qd3 $6 Qc5 $14) 32... Bc5 {[%emt 0:00:38]} 33. Ka1 {[%emt 0:00:37]} (33. Ba2 $16 {Threatens to win with b4.} a4 34. Ka1) 33... b4 $1 $11 {[%emt 0:01:06]} 34. a4 {[%emt 0:00:28]} bxc3 {[%emt 0:04:07]} 35. bxc3 {[%emt 0:00:30]} ({Much weaker is} 35. Qxc3 Bb4 36. Qxc8 Bxc8 $15) 35... Qb8 {[%emt 0:04:22]} (35... Qc7 $11) 36. Ka2 {[%emt 0:00:00]} (36. Rb1 $5 {[%cal Rb3e6]} Qc7 37. Bc4 $11) 36... Qb7 {[%emt 0:01:08]} 37. Rb2 {[%emt 0:00:50][%cal Ob3e6] Black must now prevent Bxe6! Dancing on a razor blade.} (37. Nd3 $5 {[%cal Rd3c5]} Bb6 38. Nb2 $14) 37... Qc6 {[%emt 0:00:48]} 38. Nd3 {[%emt 0:00:35]} Bb6 {[%emt 0:00:30]} 39. Nf4 {[%emt 0:00:35]} Qc5 {[%emt 0:01:17]} (39... Bc5 $11) 40. Rbd2 $14 {[%emt 0:00:25]} Bc7 {[%emt 0:00:43]} 41. Nd3 {[%emt 0:00:28]} (41. g4 $14) 41... Qc6 $11 {[%emt 0:00:36]} (41... Qxc3 $2 42. Rc2 Qxc2+ 43. Bxc2 $18) 42. Nb2 {[%emt 0:00:33]} Rc5 {[%emt 0:03:08]} (42... Be8 $15 43. Rf1 Bf7) 43. Rc1 {[%emt 0:00:04]} ({White should try} 43. Qf4 $14 Rch5 44. Nc4) 43... Rg6 {[%emt 0:01:36]} (43... Be8 $11) 44. Nd3 $1 $14 {[%emt 0:00:18]} Rcg5 {[%emt 0:01:26]} (44... Rxc3 $2 45. Rxc3 (45. Ne5 Rxc1 46. Nxc6+ Rxc6 $16) 45... Qxc3 46. Rc2 $18) 45. Nf4 {[%emt 0:00:12]} Rh6 {[%emt 0:00:14]} 46. Re1 {[%emt 0:01:23]} Bb8 {[%emt 0:00:39]} (46... Qc5 $11 {remains equal.}) 47. Nd5+ {[%emt 0:00:42]} Kf7 $132 {[%emt 0:00:20][%mdl 2048] Black is not holding back} 48. Nf4 {[%emt 0:00:14]} Rc5 {[%emt 0:00:25]} (48... Ke7 $1 $11) 49. Ne2 {[%emt 0:00:34]} Qc8 {[%emt 0:00:30]} 50. Rd3 {[%emt 0:00:37]} Rc4 {[%emt 0:00:56][%cal Od7a4]} 51. Rd4 {[%emt 0:00:20]} Rxd4 {[%emt 0:00:10]} 52. cxd4 {[%emt 0:00:19]} Ke7 {[%emt 0:00:21] [#]} (52... Kg7 $16) 53. Rc1 {[%emt 0:00:26]} (53. Qg4 $1 $18 {[%cal Rg4g7]} Qf8 54. Nf4) 53... Qg8 $16 {[%emt 0:00:42]} 54. Nf4 {[%emt 0:00:31]} Qg5 {[%emt 0:00:16][%cal Od6d5] [#]} 55. Rf1 {[%emt 0:00:27]} (55. Rc2 $1 $16 {[%cal Of4e6] And now Nxe6! would win.} Rh8 56. d5) 55... Ba7 {[%emt 0:00:18]} (55... d5 $1 $11) 56. Qc3 {[%emt 0:00:50] Hoping for Qc7.} Qg8 {[%emt 0:00:53]} ({Black should play} 56... Bb8 $1 $14) 57. Qc7 {[%emt 0:00:27]} Qb8 {[%emt 0:00:30]} 58. Rc1 {[%emt 0:00:24] Strongly threatening Bxe6. 0x0.001df01cc8d1dp-1022s more active pieces.} Rh8 $2 {[%emt 0:01:17]} (58... d5) 59. Ng6+ {[%emt 0:00:35] Weighted Error Value: White=0.27 (precise) /Black=0.32} 1-0

[Event "Vezerkepzo GM May 2022"]
[Site "Budapest"]
[Date "2022.05.23"]
[Round "7.4"]
[White "Tancsa, Tamas"]
[Black "Karavade, Eesha"]
[Result "1/2-1/2"]
[ECO "B49"]
[WhiteElo "2091"]
[BlackElo "2348"]
[Annotator "TA"]
[PlyCount "44"]
[EventDate "2022.05.18"]
[EventType "tourn"]
[EventCountry "HUN"]
[SourceTitle "playchess.com"]
[Source "ChessBase"]
[SourceQuality "1"]
[TimeControl "5400+30"]

{[%evp 16,44,26,20,29,23,42,0,19,0,7,0,14,14,36,0,0,-10,0,-10,0,0,0,0,0,-30,-19,-20,-12,-42,0]} 1. e4 {[%emt 0:00:27]} c5 {[%emt 0:00:24]} 2. Nf3 {[%emt 0:00:04]} e6 {[%emt 0:00:17]} 3. d4 {[%emt 0:00:04]} cxd4 {[%emt 0:00:05]} 4. Nxd4 {[%emt 0:00:03]} Nc6 {[%emt 0:00:08]} 5. Nc3 {[%emt 0:00:25]} Qc7 {[%emt 0:01:48]} 6. Be3 {[%emt 0:00:17]} a6 {[%emt 0:01:12]} 7. a3 {[%emt 0:00:11]} b5 {[%emt 0:01:43]} 8. Nxc6 {[%emt 0:00:08]} Qxc6 {[%emt 0:00:10]} 9. Be2 {[%emt 0:01:38][%cal Bf1e2,Be2f3,Bf3g2][%mdl 32]} Bb7 {[%emt 0:00:33] B49: Sicilian: Taimanov: 5 Nc3 Qc7 6 Be3 a6 7 Be2.} 10. O-O {[%emt 0:04:40]} Rc8 {[%emt 0:01:23]} 11. Bf3 {[%emt 0:05:00]} Qc7 {[%emt 0:03:42] The position is equal.} 12. Re1 {[%emt 0:16:18]} Bd6 {[%emt 0:13:48]} 13. g3 {[%emt 0:08:24]} Be5 {[%emt 0:00:21]} 14. Bd4 {[%emt 0:02:28]} d6 {[%emt 0:11:52]} 15. Bg2 {[%emt 0:12:42]} Nf6 {[%emt 0:01:57][%cal Bg8f6,Bf6d7,Bd7b6][%mdl 32]} 16. Qd2 {[%emt 0:00:36]} O-O {[%emt 0:03:20] [#]} 17. Rad1 $146 {[%emt 0:05:40]} ({Predecessor:} 17. Re2 Qc4 18. Rd1 a5 19. f4 Bxd4+ 20. Qxd4 b4 21. axb4 axb4 22. Qxc4 Rxc4 23. Na2 Bxe4 24. Bxe4 Rxe4 25. Rxe4 Nxe4 26. Nxb4 {0-1 (62) Escalante Ramirez,B (2438)-Illescas Cordoba,M (2605) Barcelona 2018}) 17... Rfd8 {[%emt 0:00:08]} 18. Bxe5 {[%emt 0:02:46]} dxe5 {[%emt 0:00:09]} 19. Qe3 {[%emt 0:00:02]} h6 {[%emt 0:09:09]} 20. h3 {[%emt 0:00:31]} Nd7 {[%emt 0:05:18]} 21. Bf1 {[%emt 0:01:05]} Nb6 {[%emt 0:03:58]} 22. f3 {[%emt 0:03:57]} Kf8 {[%emt 0:06:21] Weighted Error Value: White=0.13 (very precise) /Black=0.07 (flawless)} (22... Rd4 $5) 1/2-1/2

[Event "Vezerkepzo GM May 2022"]
[Site "Budapest"]
[Date "2022.05.23"]
[Round "7.5"]
[White "Pacher, Milan"]
[Black "Nagy, Gabor"]
[Result "1/2-1/2"]
[ECO "D00"]
[WhiteElo "2394"]
[BlackElo "2503"]
[Annotator "TA"]
[PlyCount "20"]
[EventDate "2022.05.18"]
[EventType "tourn"]
[EventCountry "HUN"]
[SourceTitle "playchess.com"]
[Source "ChessBase"]
[SourceQuality "1"]
[TimeControl "5400+30"]

{[%evp 9,20,-13,8,-8,0,0,0,-14,-11,-22,-6,-29,-7]} 1. d4 {[%emt 0:18:47]} Nf6 {[%emt 0:00:05]} 2. Bf4 {[%emt 0:00:04]} d5 {[%emt 0:00:06]} 3. e3 {[%emt 0:00:03]} e6 {[%emt 0:00:05]} 4. Nd2 {[%emt 0:00:04]} Bd6 {[%emt 0:00:04]} 5. Bg3 {[%emt 0:00:03]} c5 {[%emt 0:00:07]} 6. c3 {[%emt 0:00:03] D00: 1 d4 d5: Unusual lines.} Qc7 {[%emt 0:00:05]} 7. Ngf3 {[%emt 0:00:04]} Nbd7 {[%emt 0:00:05]} 8. Be2 {[%emt 0:00:05]} O-O {[%emt 0:00:06]} 9. O-O {[%emt 0:00:02]} b6 {[%emt 0:00:04]} 10. a4 {[%emt 0:00:05] [#]} Bb7 $146 {[%emt 0:00:05] An uneventful encounter.  Weighted Error Value: White=0.13 (very precise) /Black=0.07 (flawless)} ({Predecessor:} 10... a6 11. Re1 Bb7 12. Qc2 Rac8 13. Rad1 Rfe8 14. Bd3 h6 15. Qb1 e5 16. dxe5 Nxe5 17. Nxe5 Bxe5 {1-0 (62) Sorokobjagin,S (2253)-Khegay,D (2528) Chess.com INT 2020}) 1/2-1/2